Cogmind - Beta 15 *** ADVENTURER MODE // 2025.07.21 @ 22:22:40 Player: alemu Result: Destroyed by H-77 Assassin with High-powered Shotgun Performance ------------- Evolutions (6) 3000 Regions Visited (13) 2600 Robots Destroyed (137) 685 Value Destroyed (6265) 6265 Prototype IDs (23) 460 Alien Tech Used (0) 0 Bonus (3010) 3010 TOTAL SCORE: 16020 Bonus ------- High Alert Combat Kills 17 Follower Combat Kills 1901 Aligned with FarCom 300 A7 Reached Mainframe 300 Met R17 at Cetus 500 Friendly Fire -8 Cogmind --------- Core Integrity 0/1150 Matter 138/300 Energy 99/100 System Corruption 4% Temperature Cool (0) Movement Core (50) Location -4/Factory Parts ------- > --- POWER (3) -------- (None) > --- PROPULSION (4) --- (None) > --- UTILITY (9) ------ Enhanced Optical Array Advanced Terrain Scan Processor Advanced Targeting Computer > --- WEAPON (3) ------- (None) > --- INVENTORY (5) ---- Improved Terrain Scan Processor Weapon Cycler Improved Light Armor Plating Heavy Missile Launcher Improved Plasma Cutter Peak State ------------ > --- POWER ------------ Hybrid Fission Core Hybrid Fission Core Improved Fusion Compressor > --- PROPULSION ------- Advanced Treads Medium Treads Medium Treads Medium Treads > --- UTILITY ---------- High-capacity Storage Unit Enhanced Optical Array Advanced Terrain Scanner Advanced Terrain Scan Processor Advanced Targeting Computer Weapon Cycler Weapon Cycler Layered Medium Armor Plating Advanced Hacking Suite > --- WEAPON ----------- Gauss Rifle Advanced Assault Cannon Magnetic Acceleration Cannon > --- INVENTORY -------- Hybrid Fission Core Hybrid Fission Core Fusion Compressor Medium Treads Medium Treads Advanced Heat Sink Enhanced Optical Array Improved Terrain Scan Processor Advanced Targeting Computer Core Analyzer Advanced Transmission Jammer Phase Shifter Advanced Thermal Shield Force Field Component Analysis Suite Improved Field Recycling Unit Magnetic Acceleration Cannon Heavy Missile Launcher Improved Plasma Cutter [Rating: 91] Favorites ----------- Power Hybrid Fission Core Engine Ion Engine Power Core Hybrid Fission Core Propulsion Medium Treads Treads Medium Treads Leg Aluminum Leg Wheel Wheel Utility Weapon Cycler Device Weapon Cycler Storage Large Storage Unit Processor Advanced Terrain Scan Processor Hackware Advanced Hacking Suite Protection Powered Armor Weapon Advanced Assault Cannon Energy Cannon Latent Energy Streamer Ballistic Gun Gauss Rifle Ballistic Cannon Advanced Assault Cannon Launcher Heavy Missile Launcher Build | -11 -10 -10 -10 -9 -8 -7 -6 -6 -6 -5 -5 -5 -4 ------- Run | Yrd Mat Min Exi Min Mat Fac Fac Ext Cet Fac Upp Upp Fac Slots Evolved 12 | . . . . . 4 2 2 . . 2 . . 2 Power 2 | . . . . . 1 . . . . . . . 1 Propulsion 2 | . . . . . 1 . . . . 1 . . . Utility 7 | . . . . . 2 1 2 . . 1 . . 1 Weapon 1 | . . . . . . 1 . . . . . . . Parts Attached 71 | 5 5 3 1 . 7 20 13 3 1 6 1 1 5 Power 13 | 1 1 1 . . 2 4 2 . . . . . 2 Engine 5 | 1 1 1 . . 1 1 . . . . . . . Core 8 | . . . . . 1 3 2 . . . . . 2 Reactor . | . . . . . . . . . . . . . . Propulsion 17 | 2 . 2 . . 2 7 2 . 1 . . 1 . Treads 11 | . . . . . . 7 2 . 1 . . 1 . Leg 4 | . . 2 . . 2 . . . . . . . . Wheel 2 | 2 . . . . . . . . . . . . . Hover . | . . . . . . . . . . . . . . Flight . | . . . . . . . . . . . . . . Utility 25 | . 2 . . . 2 5 8 1 . 5 1 . 1 Device 9 | . . . . . 2 . 4 . . 2 . . 1 Storage 3 | . 1 . . . . . 1 1 . . . . . Processor 8 | . 1 . . . . 3 2 . . 2 . . . Hackware 2 | . . . . . . 1 . . . 1 . . . Protection 3 | . . . . . . 1 1 . . . 1 . . Artifact . | . . . . . . . . . . . . . . Weapon 16 | 2 2 . 1 . 1 4 1 2 . 1 . . 2 Energy Gun . | . . . . . . . . . . . . . . Energy Cannon 1 | . . . 1 . . . . . . . . . . Ballistic Gun 8 | 2 1 . . . . 2 . 2 . 1 . . . Ballistic Cannon 5 | . . . . . 1 2 . . . . . . 2 Launcher 2 | . 1 . . . . . 1 . . . . . . Special Weapon . | . . . . . . . . . . . . . . Impact Weapon . | . . . . . . . . . . . . . . Slashing Weapon . | . . . . . . . . . . . . . . Piercing Weapon . | . . . . . . . . . . . . . . Special Melee Weapon . | . . . . . . . . . . . . . . Unidentified Prototypes . | . . . . . . . . . . . . . . Parts Lost 24 | . 1 1 . . . 1 . . . 1 1 . 19 Power 4 | . . . . . . 1 . . . . . . 3 Propulsion 8 | . 1 1 . . . . . . . . . . 6 Utility 6 | . . . . . . . . . . . 1 . 5 Weapon 6 | . . . . . . . . . . 1 . . 5 Highest Loss Streak 16 | . 1 1 . . . 1 . . . 1 1 . 16 To Critical Strikes 1 | . . . . . . . . . . 1 . . . Average Backups 16 | 1 12 14 15 15 14 14 14 15 20 19 18 18 18 Power 2 | . 1 1 2 2 1 2 2 3 3 2 3 3 2 Propulsion 2 | . 2 2 2 2 1 3 1 2 3 1 2 2 1 Utility 7 | . 5 6 6 6 4 5 7 7 9 9 9 9 10 Weapon 3 | . 3 5 5 5 6 3 2 3 5 5 3 3 1 Tool/Special . | . . . . . . . . . . . . . . Unused Backups 45 | . 5 2 . . 3 7 5 1 . 6 . . 16 Power 6 | . . . . . . 2 1 . . 1 . . 2 Propulsion 1 | . . . . . . 1 . . . . . . . Utility 30 | . 5 . . . 1 3 3 1 . 4 . . 13 Weapon 7 | . . 2 . . 2 1 1 . . 1 . . . Tool/Special 1 | . . . . . . . . . . . . . 1 Average Slot Usage (%) 98 | . 94 87 100 100 99 98 99 100 100 97 93 97 98 Engine 5 | . 14 14 14 14 16 7 2 . . . . . . Core 8 | . . . . . 1 5 9 13 13 10 11 11 14 Treads 15 | . . . . . . 19 19 20 20 21 17 20 20 Leg 6 | . . 11 28 28 27 3 . . . . . . . Device 10 | . . . . . 17 10 13 13 13 15 11 11 16 Storage 7 | . 12 14 14 14 9 7 6 6 6 5 5 5 5 Processor 16 | . 12 14 14 14 9 14 19 20 20 17 17 17 15 Hackware 1 | . . . . . . . . . . 1 5 5 3 Protection 3 | . . . . . . 3 5 5 6 4 4 5 4 Energy Cannon 2 | . . . 4 14 9 6 . . . . . . . Ballistic Gun 8 | . 27 28 23 14 . 6 5 5 5 5 5 5 2 Ballistic Cannon 8 | . . . . . 8 7 13 13 13 10 11 11 11 Peak Build Rating 91 | 5 9 9 18 18 30 49 65 68 68 79 75 79 91 Average Rating 52 | 3 7 8 12 18 26 42 56 64 67 74 73 77 88 On Entrance 39 | . 5 8 9 18 18 30 44 64 68 67 74 75 79 Naked Turns . | . . . . . . . . . . . . . . Heaviest Build 108 | 6 29 28 36 36 47 76 77 87 87 85 84 82 108 Greatest Support 112 | 20 20 20 20 20 39 90 84 84 84 112 84 112 112 Greatest Overweight (x) 22 | . 2 2 1 1 1 1 1 1 1 1 . . 22 Average Overweight (x) . | . 1 1 1 1 1 . . . . . . . . Largest Inventory Capacity 20 | 5 15 15 15 15 15 15 15 20 20 20 20 20 20 Average Capacity 16 | 5 13 15 15 15 15 15 15 16 20 20 20 20 19 Most Carried 20 | 5 15 15 15 15 15 15 15 20 20 20 19 18 20 Average Carried 16 | . 12 14 15 15 14 14 14 15 20 19 18 18 18 Final Capacity 20 | 5 15 15 15 15 15 15 15 20 20 20 20 20 5 Final Carried 20 | 5 15 15 15 15 15 15 15 20 20 19 18 18 5 Class Distribution -------------------- 34% | Skirmisher 20% | Hacker-Skirmisher 20% | Mutant 13% | Commander-Skirmisher 11% | Scavenger-Skirmisher Dominant Class ---------------- Mutant | -10/Materials Mutant | -10/Mines Mutant | -10/Exiles Mutant | -9/Mines Scavenger-Skirmisher | -8/Materials Skirmisher | -7/Factory Skirmisher | -6/Factory Skirmisher | -6/Extension Commander-Skirmisher | -6/Cetus Commander-Skirmisher | -5/Factory Hacker-Skirmisher | -5/Upper Caves Hacker-Skirmisher | -5/Upper Caves Hacker-Skirmisher | -4/Factory Resources | -11 -10 -10 -10 -9 -8 -7 -6 -6 -6 -5 -5 -5 -4 ----------- Run | Yrd Mat Min Exi Min Mat Fac Fac Ext Cet Fac Upp Upp Fac Matter Collected 4638 | 254 54 167 . 89 238 499 571 551 230 933 100 199 753 Remotely . | . . . . . . . . . . . . . . Salvage Created 4160 | 31 237 137 . 20 419 791 718 416 42 518 51 154 626 Parts 205 | 4 18 7 . . 18 33 40 15 1 20 . 13 36 Haulers Intercepted 2 | . . . . . . 1 . . . 1 . . . Recyclers Shooed 2 | . 2 . . . . . . . . . . . . Parts Field Recycled 113 | . . . . . . . 48 20 . . . . 45 Retrieved Matter 1426 | . . . . . . . 718 156 . . . . 552 Parts Self-Destructed 13 | . . . . . . . . . . . . 13 . Prevented . | . . . . . . . . . . . . . . Kills | -11 -10 -10 -10 -9 -8 -7 -6 -6 -6 -5 -5 -5 -4 ------- Run | Yrd Mat Min Exi Min Mat Fac Fac Ext Cet Fac Upp Upp Fac Combat Hostiles Destroyed 115 | 1 5 3 . 1 9 20 20 9 1 11 1 9 25 Guns 23 | 1 4 3 . 1 . . . 4 . 3 1 3 3 Cannons 62 | . . . . . 5 10 14 5 . 8 . 6 14 AOE 30 | . 1 . . . 4 10 6 . 1 . . . 8 Classes Destroyed 12 | 1 1 . . 1 3 4 1 1 . . . . . Worker 2 | . . . . . . 1 . . . . . . 1 Hauler 2 | . . . . . . 1 . . . 1 . . . Recycler 1 | . . . . . 1 . . . . . . . . Carrier 1 | . . . . . 1 . . . . . . . . Operator 2 | . . . . . . . 1 . . 1 . . . Watcher 14 | . 2 . . . 2 . 3 2 1 2 . . 2 Swarmer 33 | . . . . 1 3 3 7 . . 1 . 9 9 Grunt 37 | 1 5 3 . . 3 8 6 4 . 3 . . 4 Sentry 16 | . . . . . 3 2 3 4 . 1 1 . 2 Hunter 6 | . . . . . . 2 . . . . . . 4 Programmer 19 | . . . . . . 5 4 . . 4 . . 6 Behemoth 2 | . . . . . . . . 1 . 1 . . . Cetus Guard 1 | . . . . . . . . . 1 . . . . Guerrilla 1 | . . . . . . . . . . 1 . . . Best Kill Streak 8 | 1 5 2 . 1 8 7 5 2 2 3 1 5 7 Combat Bots Only 7 | 1 4 2 . 1 5 7 4 2 1 3 1 5 6 Max Kills in Single Turn 5 | 1 1 1 . 1 5 3 4 1 1 1 1 2 4 Gunslinging . | . . . . . . . . . . . . . . Exploded 4 | . 1 . . . 2 3 4 . 1 . . . 4 Melee . | . . . . . . . . . . . . . . Uniques/NPCs Destroyed . | . . . . . . . . . . . . . . Combat | -11 -10 -10 -10 -9 -8 -7 -6 -6 -6 -5 -5 -5 -4 -------- Run | Yrd Mat Min Exi Min Mat Fac Fac Ext Cet Fac Upp Upp Fac Hostile Shots Fired 826 | 1 15 25 . 5 13 89 104 147 6 36 8 27 350 Missed 225 | 1 5 7 . 1 3 30 29 49 1 8 2 9 80 Hits 601 | . 10 18 . 4 10 59 75 98 5 28 6 18 270 Projectile 601 | . 10 18 . 4 10 59 75 98 5 28 6 18 270 Critical Strikes 20 | . 1 1 . . 2 1 1 1 2 3 . . 8 Part Disruptions 2 | . . . . . . 2 . . . . . . . Damage Taken 6689 | . 107 204 . 25 85 714 424 555 122 513 111 222 3607 Core 1497 | . . 74 . 12 29 86 19 13 . 62 20 26 1156 Absorbed by Shields 262 | . . . . . . . . 243 19 . . . . Ignored by Resistances 2150 | . 33 62 . 8 25 202 267 255 39 143 30 65 1021 Regen/Repaired (Parts) 1088 | . . . . . . 158 276 . . 398 . . 256 Core Remaining (%) 88 | 100 . . . 65 94 87 . . 96 . . 89 . Volleys Fired 313 | 1 25 16 1 5 18 41 31 32 9 47 5 11 71 Largest 3 | 2 2 2 2 1 2 3 3 3 2 3 3 3 3 Hottest 128 | 40 53 40 40 20 100 108 108 119 80 108 108 108 128 Shots Fired 748 | 2 47 32 2 5 20 83 84 92 14 139 15 31 182 Gun 261 | 2 46 32 2 5 . 35 23 29 1 47 5 9 25 Cannon 467 | . . . . . 20 45 57 60 8 92 10 22 153 Launcher 20 | . 1 . . . . 3 4 3 5 . . . 4 Special . | . . . . . . . . . . . . . . Kinetic 720 | 2 46 32 2 5 17 75 80 89 9 139 15 31 178 Thermal . | . . . . . . . . . . . . . . Explosive 20 | . 1 . . . . 3 4 3 5 . . . 4 Electromagnetic 8 | . . . . . 3 5 . . . . . . . Robot Hit Streak 25 | 2 14 15 . 14 8 12 19 24 21 25 21 8 23 Robot Miss Streak 5 | . 2 2 . 2 1 2 2 2 1 5 1 1 3 Penetration Max 1 | . . . . . . 1 . 1 . . . 1 1 Secondary Targets 1 | . . 1 . . . . . . . . . . . Max Gunslinging Chain 1 | . . 1 . . . . . . . . . . . Shots Hit Robots 560 | 2 33 28 . 3 13 65 58 72 11 111 12 19 133 Core Hits 281 | 2 17 10 . 1 16 34 37 30 21 32 3 9 69 Critical Kills 4 | 1 1 . . . . . . . . 2 . . . Critical Parts Destroyed 3 | . . . . . . . 1 . . 2 . . . Critical Strikes 33 | 1 1 . . . 1 2 5 5 1 11 . . 6 Destroy 7 | 1 1 . . . . . 1 . . 4 . . . Blast 26 | . . . . . 1 2 4 5 1 7 . . 6 Melee Attacks . | . . . . . . . . . . . . . . Impact . | . . . . . . . . . . . . . . Slashing . | . . . . . . . . . . . . . . Piercing . | . . . . . . . . . . . . . . Sneak Attacks . | . . . . . . . . . . . . . . Combat Hostiles . | . . . . . . . . . . . . . . Follow-up Attacks . | . . . . . . . . . . . . . . Damage Inflicted 16765 | 24 512 251 . 35 1076 2564 2107 1885 729 2632 224 485 4241 Guns 3479 | 24 360 251 . 35 . 503 333 481 . 811 98 137 446 Cannons 9185 | . . . . . 335 950 1061 1260 191 1821 126 348 3093 Explosions 4069 | . 152 . . . 741 1111 689 144 538 . . . 694 Melee . | . . . . . . . . . . . . . . Ramming 32 | . . . . . . . 24 . . . . . 8 Kinetic 12641 | 24 360 251 . 35 330 1435 1394 1741 191 2632 224 485 3539 Thermal 480 | . . . . . 480 . . . . . . . . Explosive 2652 | . 152 . . . . 435 689 144 538 . . . 694 Electromagnetic 960 | . . . . . 266 694 . . . . . . . Impact . | . . . . . . . . . . . . . . Slashing . | . . . . . . . . . . . . . . Piercing . | . . . . . . . . . . . . . . Highest Corruption 18 | . . . . . 7 18 3 4 4 3 3 3 4 Average Corruption 4 | . . . . . 5 10 1 3 4 2 3 3 1 Corruption Purged . | . . . . . . . . . . . . . . Corruption Blocked . | . . . . . . . . . . . . . . Effects 176 | . . . . . 13 62 24 24 17 12 6 14 4 Message Errors 37 | . . . . . 4 15 2 7 2 4 . 2 1 Matter Fused 41 | . . . . . 2 13 7 4 6 3 3 2 1 Heat Flow Errors 21 | . . . . . 1 9 6 3 . . . 2 . Energy Discharges 24 | . . . . . 1 6 3 4 3 2 . 3 2 Parts Rejected 1 | . . . . . . . . 1 . . . . . Parts Fused 3 | . . . . . . 2 . . 1 . . . . Data Loss (minor) 27 | . . . . . 4 8 2 2 2 3 2 4 . Data Loss (major) 8 | . . . . . . 5 1 1 . . 1 . . Misfires 8 | . . . . . . 3 3 1 1 . . . . Alerts 4 | . . . . . 1 . . . 2 . . 1 . Weapon Failures 2 | . . . . . . 1 . 1 . . . . . Overload Shots . | . . . . . . . . . . . . . . Overflow Damage 272 | . 3 . . . 17 82 34 20 . 40 . 4 72 Projectiles 172 | . . . . . 7 14 16 20 . 40 . 4 71 Explosions 100 | . 3 . . . 10 68 18 . . . . . 1 Melee . | . . . . . . . . . . . . . . Knockbacks 52 | . . . . . 2 5 2 6 . 12 . . 25 Impact . | . . . . . . . . . . . . . . Kinetic 51 | . . . . . 2 5 2 5 . 12 . . 25 Secondary 1 | . . . . . . . . 1 . . . . . Self-Inflicted Damage 279 | . . . . . . 256 . . . . . . 23 Shots 6 | . . . . . . 5 . . . . . . 1 Rammed 3 | . . . . . . . 1 . . . . . 2 Targets Rammed 3 | . . . . . . . 1 . . . . . 2 Kicked . | . . . . . . . . . . . . . . Crushed . | . . . . . . . . . . . . . . Highest Temperature 366 | . 25 15 . . 116 269 366 320 47 270 160 189 336 Average Temperature 90 | . 10 9 . . 30 80 93 120 21 70 73 82 110 Received Heat Transfer 1581 | . 96 165 . . 72 75 102 171 . 27 27 . 846 Effects 6 | . . . . . . . 2 . . . . . 4 Energy Bleed 2 | . . . . . . . 1 . . . . . 1 Interference 4 | . . . . . . . 1 . . . . . 3 Siege Activations . | . . . . . . . . . . . . . . Martial Activations . | . . . . . . . . . . . . . . Shielding Activations . | . . . . . . . . . . . . . . Robots Disrupted . | . . . . . . . . . . . . . . Combat Hostiles . | . . . . . . . . . . . . . . Robots Corrupted . | . . . . . . . . . . . . . . Combat Hostiles . | . . . . . . . . . . . . . . Parts Fried 3 | . . . . . 2 1 . . . . . . . Impact Corruptions . | . . . . . . . . . . . . . . Robots Melted . | . . . . . . . . . . . . . . Combat Hostiles . | . . . . . . . . . . . . . . Parts Melted 1 | . . . . . . . . . . 1 . . . Heat Transferred 300 | . . . . . 300 . . . . . . . . Parts Sabotaged . | . . . . . . . . . . . . . . Parts Stolen . | . . . . . . . . . . . . . . Parts Stripped . | . . . . . . . . . . . . . . Power Chain Reactions 1 | . . . . . . 1 . . . . . . . Latent Energy Used 1370 | . . . . . 430 940 . . . . . . . LE Corruption 22 | . . . . . 7 15 . . . . . . . Alert | -11 -10 -10 -10 -9 -8 -7 -6 -6 -6 -5 -5 -5 -4 ------- Run | Yrd Mat Min Exi Min Mat Fac Fac Ext Cet Fac Upp Upp Fac Maximum Alert Level 2 | . . . . . 1 1 . 1 1 1 . . 2 Low Security (%) 89 | 100 100 100 . 100 90 93 100 88 83 98 . . 49 Level 1 10 | . . . . . 9 6 . 11 16 1 . . 49 Level 2 . | . . . . . . . . . . . . . 1 Level 3 . | . . . . . . . . . . . . . . Level 4 . | . . . . . . . . . . . . . . Level 5 . | . . . . . . . . . . . . . . High Security . | . . . . . . . . . . . . . . Max Security . | . . . . . . . . . . . . . . Peak Influence 405 | 20 96 50 . 53 227 247 115 323 236 208 . . 405 Initial 137 | . 5 . . . . 24 8 . 137 52 . . 5 Average 68 | 3 8 29 . 3 106 48 29 65 147 77 . . 176 Influence Increases 5375 | 20 162 80 . 73 372 745 709 866 291 916 20 200 921 Destroy 0b10 Robot/C 3100 | 20 100 60 . 60 200 400 400 520 160 480 20 180 500 Destroy 0b10 Robot/NC 130 | . 10 . . . 15 10 20 15 10 35 . . 15 Destroy Leader 604 | . 24 20 . 10 54 102 106 56 . 118 . 20 94 Allied During Kill 387 | . . . . 3 . . . 187 80 117 . . . Successful Hack 229 | . 7 . . . . 26 99 40 14 29 . . 14 Disable Machine 252 | . . . . . 27 99 27 9 . 27 . . 63 Destroy Structure 568 | . 6 . . . 46 108 42 39 27 110 . . 190 Partial Spotted 15 | . 15 . . . . . . . . . . . . Lose Combat Pursuer 90 | . . . . . 30 . 15 . . . . . 45 Influence Decreases 5254 | 10 172 60 20 73 310 787 729 583 466 963 81 190 810 Entered New Map 310 | . 5 . 20 . . 38 12 . 146 56 28 . 5 Time Decay 4366 | 10 74 50 . 73 290 749 717 523 260 762 53 190 615 Lost Part 210 | . . 10 . . . . . . . 10 . . 190 Lost Ally 237 | . . . . . 20 . . 60 60 97 . . . Purge Threat 131 | . 93 . . . . . . . . 38 . . . Squads Dispatched 31 | . . . . . . 7 7 4 . 7 . . 6 Investigation 12 | . . . . . . 2 3 3 . 3 . . 1 Extermination 13 | . . . . . . 4 3 . . 3 . . 3 Reinforcement 4 | . . . . . . 1 1 1 . . . . 1 Assault . | . . . . . . . . . . . . . . Garrison 2 | . . . . . . . . . . 1 . . 1 Intercept . | . . . . . . . . . . . . . . Searches Triggered . | . . . . . . . . . . . . . . Construction Impeded 1 | . . . . . . 1 . . . . . . . Haulers Reinforced . | . . . . . . . . . . . . . . Active Scanning Responses . | . . . . . . . . . . . . . . Cargo Convoy Interrupts . | . . . . . . . . . . . . . . Stealth | -11 -10 -10 -10 -9 -8 -7 -6 -6 -6 -5 -5 -5 -4 --------- Run | Yrd Mat Min Exi Min Mat Fac Fac Ext Cet Fac Upp Upp Fac Distress Signals 14 | . 2 . . . 2 2 1 2 1 1 . . 3 Communications Jammed . | . . . . . . . . . . . . . . Distress Signals . | . . . . . . . . . . . . . . Times Spotted 176 | 1 8 4 . 3 11 21 25 21 6 26 1 8 41 Peak Tracking Total 10 | 1 4 2 . 3 6 4 4 4 5 3 1 4 10 Tactical Retreats 4 | . . . . . 1 . 1 . . . . . 2 Traps | -11 -10 -10 -10 -9 -8 -7 -6 -6 -6 -5 -5 -5 -4 ------- Run | Yrd Mat Min Exi Min Mat Fac Fac Ext Cet Fac Upp Upp Fac Traps Triggered 8 | . . . . . . 4 2 . . 2 . . . Indirectly . | . . . . . . . . . . . . . . Trap Hack Attempts . | . . . . . . . . . . . . . . Triggered . | . . . . . . . . . . . . . . Disarmed . | . . . . . . . . . . . . . . Reprogrammed . | . . . . . . . . . . . . . . Reused . | . . . . . . . . . . . . . . Traps Extracted . | . . . . . . . . . . . . . . Installed . | . . . . . . . . . . . . . . Triggered . | . . . . . . . . . . . . . . Machines | -11 -10 -10 -10 -9 -8 -7 -6 -6 -6 -5 -5 -5 -4 ---------- Run | Yrd Mat Min Exi Min Mat Fac Fac Ext Cet Fac Upp Upp Fac Machines Disabled 30 | . . . . . 3 11 3 3 . 3 . . 7 Max in Single Turn 5 | . . . . . 3 2 2 1 . 1 . . 5 Machines Repaired . | . . . . . . . . . . . . . . Machines Dismantled . | . . . . . . . . . . . . . . Machines Sabotaged . | . . . . . . . . . . . . . . Overloaded Fab Kills . | . . . . . . . . . . . . . . Hacking | -11 -10 -10 -10 -9 -8 -7 -6 -6 -6 -5 -5 -5 -4 --------- Run | Yrd Mat Min Exi Min Mat Fac Fac Ext Cet Fac Upp Upp Fac Machines Accessed 60 | . 7 . 3 . 1 8 13 12 3 8 1 1 3 Terminals 37 | . 5 . . . 1 3 6 11 3 5 . 1 2 Fabricators 2 | . . . . . . 1 1 . . . . . . Repair Stations 12 | . . . . . . 2 6 1 . 2 . . 1 Recycling Units 5 | . 2 . . . . 2 . . . 1 . . . Scanalyzers . | . . . . . . . . . . . . . . Garrison Access . | . . . . . . . . . . . . . . Total Hacks 168 | . 11 . 26 . 4 23 30 26 7 29 1 1 10 Successful 119 | . 10 . 26 . 2 17 17 20 4 16 1 1 5 Failed 49 | . 1 . . . 2 6 13 6 3 13 . . 5 Catastrophic 7 | . 1 . . . . 1 1 . 1 3 . . . Database Lockouts . | . . . . . . . . . . . . . . Manual 2 | . . . 1 . . . . . . 1 . . . Terminals 73 | . 8 . . . 4 7 10 21 7 11 . 1 4 Fabricators 2 | . . . . . . 1 1 . . . . . . Repair Stations 51 | . . . . . . 7 19 5 . 14 . . 6 Recycling Units 15 | . 3 . . . . 8 . . . 4 . . . Scanalyzers . | . . . . . . . . . . . . . . Garrison Access . | . . . . . . . . . . . . . . Terminal Hacks 73 | . 8 . 26 . 2 3 7 18 4 2 1 1 1 Record 43 | . 1 . 25 . 1 . 2 9 3 . 1 1 . Robot Analysis 3 | . 1 . . . . 1 1 . . . . . . Open Door 7 | . . . . . . . . 6 1 . . . . Open DSF 2 | . . . . . . . 2 . . . . . . Branch Access Points 1 | . . . . . . . . . . 1 . . . Alert Level 3 | . 1 . . . 1 . . 1 . . . . . Unreport Threat 2 | . 1 . . . . . . . . 1 . . . Locate Traps 3 | . 1 . . . . 1 . 1 . . . . . Dispatch Records 2 | . 1 . . . . 1 . . . . . . . Maintenance Status 1 | . 1 . . . . . . . . . . . . Reinforcement Status 1 | . . . . . . . 1 . . . . . . Recall Investigation 2 | . . . . . . . . 1 . . . . 1 Hauler Manifests 1 | . 1 . . . . . . . . . . . . Zone Layout 1 | . . . . . . . 1 . . . . . . Proto ID Catalog 1 | . . . 1 . . . . . . . . . . Fabricator Hacks 1 | . . . . . . 1 . . . . . . . Network Status 1 | . . . . . . 1 . . . . . . . Repair Station Hacks 32 | . . . . . . 6 10 2 . 10 . . 4 Scan Component 18 | . . . . . . 3 6 2 . 5 . . 2 Repair 14 | . . . . . . 3 4 . . 5 . . 2 Recycling Unit Hacks 13 | . 2 . . . . 7 . . . 4 . . . Recycle Component 2 | . . . . . . 2 . . . . . . . Process 2 | . . . . . . 1 . . . 1 . . . Report Inventory 7 | . 2 . . . . 3 . . . 2 . . . Retrieve Matter 2 | . . . . . . 1 . . . 1 . . . Scanalyzer . | . . . . . . . . . . . . . . Garrison Access Hacks . | . . . . . . . . . . . . . . Unauthorized Hacks . | . . . . . . . . . . . . . . Terminals . | . . . . . . . . . . . . . . Fabricators . | . . . . . . . . . . . . . . Repair Stations . | . . . . . . . . . . . . . . Recycling Units . | . . . . . . . . . . . . . . Scanalyzers . | . . . . . . . . . . . . . . Garrison Access . | . . . . . . . . . . . . . . Data Cores Recovered 1 | . . . . . . . 1 . . . . . . Used . | . . . . . . . . . . . . . . Hacking Detections 41 | . 3 . . . 1 6 10 9 2 7 . . 3 Full Trace Events 12 | . . . . . . 2 3 3 . 3 . . 1 Feedback Events 2 | . . . . . . . 1 1 . . . . . Corruption 2 | . . . . . . . 1 1 . . . . . Feedback Blocked . | . . . . . . . . . . . . . . Robot Schematics Acquired . | . . . . . . . . . . . . . . Robots Built . | . . . . . . . . . . . . . . Authchips . | . . . . . . . . . . . . . . Time . | . . . . . . . . . . . . . . Total Robot Build Rating . | . . . . . . . . . . . . . . Part Schematics Acquired . | . . . . . . . . . . . . . . Parts Built . | . . . . . . . . . . . . . . Authchips . | . . . . . . . . . . . . . . Time . | . . . . . . . . . . . . . . Total Part Build Rating . | . . . . . . . . . . . . . . Parts Repaired 14 | . . . . . . 3 4 . . 5 . . 2 Time 585 | . . . . . . 79 175 . . 243 . . 88 Parts Recycled 2 | . . . . . . 2 . . . . . . . Recycled Matter 461 | . . . . . . 102 . . . 359 . . . Retrieved Matter 461 | . . . . . . 102 . . . 359 . . . Retrieved Components . | . . . . . . . . . . . . . . Parts Scanalyzed . | . . . . . . . . . . . . . . Part Schematics Acquired . | . . . . . . . . . . . . . . Parts Damaged . | . . . . . . . . . . . . . . Bothacking | -11 -10 -10 -10 -9 -8 -7 -6 -6 -6 -5 -5 -5 -4 ------------ Run | Yrd Mat Min Exi Min Mat Fac Fac Ext Cet Fac Upp Upp Fac Used RIF Installer . | . . . . . . . . . . . . . . Robots Hacked . | . . . . . . . . . . . . . . Non-combat . | . . . . . . . . . . . . . . Combat . | . . . . . . . . . . . . . . Robot Hacks Applied . | . . . . . . . . . . . . . . Relay Couplers Released . | . . . . . . . . . . . . . . Fabnet Peak Effective % . | . . . . . . . . . . . . . . Robots Rewired 10 | . . . . . . . . 10 . . . . . Allies Hacked 2 | . . . . . . . . . . 2 . . . Hacks Repelled . | . . . . . . . . . . . . . . Allies | -11 -10 -10 -10 -9 -8 -7 -6 -6 -6 -5 -5 -5 -4 -------- Run | Yrd Mat Min Exi Min Mat Fac Fac Ext Cet Fac Upp Upp Fac Total Allies 20 | . . . . 2 . . . 18 . . . . . Largest Group 13 | . . . . 2 2 . . 13 13 10 . . . Highest-Rated Group 570 | . . . . 45 45 . . 570 561 434 . . . Highest-Rated Ally 159 | . . . . 31 31 . . 159 159 146 . . . Total Orders . | . . . . . . . . . . . . . . Ally Attacks 277 | . . . . 16 1 . . 134 37 89 . . . Total Damage 4734 | . . . . 187 22 . . 2488 646 1391 . . . Kills 48 | . . . . 2 . . . 20 8 18 . . . Allies Corrupted 1 | . . . . . . . . . . 1 . . . Allies Melted . | . . . . . . . . . . . . . . Intel | -11 -10 -10 -10 -9 -8 -7 -6 -6 -6 -5 -5 -5 -4 ------- Run | Yrd Mat Min Exi Min Mat Fac Fac Ext Cet Fac Upp Upp Fac Active Infowar (turns) 11823 | . . . . . 668 2205 2409 1576 524 1693 479 658 1611 Optics 11132 | . . . . . . 2204 2387 1576 524 1693 479 658 1611 Terrain 11704 | . . . . . 668 2192 2409 1576 524 1640 479 658 1558 Robot Analysis Total 3 | . 1 . . . . 1 1 . . . . . . Derelict Logs Recovered 4 | . . . . 2 . . . . . . 1 1 . Drone Launches . | . . . . . . . . . . . . . . Drone Recoveries . | . . . . . . . . . . . . . . Exploration | -11 -10 -10 -10 -9 -8 -7 -6 -6 -6 -5 -5 -5 -4 ------------- Run | Yrd Mat Min Exi Min Mat Fac Fac Ext Cet Fac Upp Upp Fac Turns Passed 14858 | 65 537 109 1168 1092 671 2205 2409 1576 524 1693 479 658 1672 Spaces Moved 8079 | 68 463 26 613 564 316 1110 1332 832 310 913 291 392 849 Core 30 | 15 . . . . . . . . . . . . 15 Treads 5897 | . . . . . . 993 1332 832 310 913 291 392 834 Legs 1632 | . . 22 613 564 316 117 . . . . . . . Wheels 520 | 53 463 4 . . . . . . . . . . . Hover . | . . . . . . . . . . . . . . Flight . | . . . . . . . . . . . . . . Fastest Speed 50 | 50 80 110 190 190 190 160 155 160 160 160 160 160 50 Average Speed 163 | 73 95 177 190 190 190 170 159 161 160 162 160 160 164 Slowest Speed 1150 | 80 110 190 190 190 190 245 240 240 240 240 160 160 1150 Overloaded Moves . | . . . . . . . . . . . . . . Propulsion Burnouts . | . . . . . . . . . . . . . . Robots Hopped . | . . . . . . . . . . . . . . Potential Cave-ins . | . . . . . . . . . . . . . . Cave-ins Triggered . | . . . . . . . . . . . . . . Exploration Rate (%) 48 | 5 77 6 73 98 24 32 24 87 96 11 56 66 19 Regions Visited 13 Branch Regions 7 Pre-discovered Areas 2 | . . . 1 1 . . . . . . . . . Known Exits Taken 1 | . . . . . . . . . . 1 . . . Unknown Exits Taken 12 | 1 1 1 1 1 1 1 1 1 1 . 1 1 . Scrap Searched 3 | . . . . 1 . . . . . . 2 . . Spaces Dug . | . . . . . . . . . . . . . . Terrain Destroyed 473 | . 6 . . . 63 125 44 20 67 12 1 . 135 Melee . | . . . . . . . . . . . . . . Projectile 51 | . . . . . 5 3 5 2 1 12 1 . 22 AOE 422 | . 6 . . . 58 122 39 18 66 . . . 113 Terrain Rammed . | . . . . . . . . . . . . . . Walls Destroyed . | . . . . . . . . . . . . . . Machines Disabled . | . . . . . . . . . . . . . . Actions | -11 -10 -10 -10 -9 -8 -7 -6 -6 -6 -5 -5 -5 -4 --------- Run | Yrd Mat Min Exi Min Mat Fac Fac Ext Cet Fac Upp Upp Fac Total 9219 | 78 514 62 615 581 370 1347 1559 1003 323 1053 296 403 1015 Wait 408 | . 1 10 . 13 15 119 127 29 . 46 . . 48 Move 8066 | 67 462 25 612 563 315 1109 1331 831 309 912 290 391 849 Hop . | . . . . . . . . . . . . . . Pick Up 100 | 5 15 5 . . 7 23 15 6 . 14 . . 10 Fast Attach 40 | 5 2 . 1 . 3 13 6 1 . 8 . 1 . Attach 30 | . . 3 . . 4 6 5 1 . 4 1 . 6 Detach 8 | . . . . . 2 2 2 1 . 1 . . . Swap 95 | . 3 . . . . 11 27 13 5 10 . . 26 Drop 69 | . 6 3 1 . 6 23 14 2 . 11 . . 3 Fire 313 | 1 25 16 1 5 18 41 31 32 9 47 5 11 71 Melee . | . . . . . . . . . . . . . . Ram 1 | . . . . . . . . . . . . . 1 Kick . | . . . . . . . . . . . . . . Crush 2 | . . . . . . . 1 . . . . . 1 Escape Stasis . | . . . . . . . . . . . . . . Rewire 87 | . . . . . . . . 87 . . . . . Trap . | . . . . . . . . . . . . . . Miscellaneous . | . . . . . . . . . . . . . . Route ------- -11/Scrapyard -10/Materials (discovered 3 exits: [*Mat] / [*Min x2]) -10/Mines -10/Exiles (discovered 2 exits: [*Min x2]) -9/Mines (discovered 2 exits: *Mat x2) -8/Materials (discovered 2 exits: *Fac / [*Sto]) -7/Factory -6/Factory -6/Extension (discovered 3 exits: *Fac x2 / *Cet) -6/Cetus (discovered 3 exits: *Fac x2 / [*Arc]) -5/Factory (discovered 4 exits: *Fac x2 / *Upp x2) -5/Upper Caves -5/Upper Caves -4/Factory (discovered 1 exit: [*Upp]) History --------- Turn | Location | Event 2 | -11/Scrapyard | Met Revision 17 46 | -11/Scrapyard | Discovered new exit (range 8) 66 | -11/Scrapyard | Entered Materials 183 | -10/Materials | Discovered new exit (range 9) 254 | -10/Materials | Discovered new exit (range 15) 315 | -10/Materials | Build established: Mutant 424 | -10/Materials | Discovered new exit (range 15) 603 | -10/Materials | Entered Mines 703 | -10/Mines | Deemed a non-threat by the Exiles lab entrance 703 | -10/Mines | Discovered new exit (range 5) 712 | -10/Mines | Entered Exiles 761 | -10/Exiles | Met 8R-AWN 797 | -10/Exiles | Met EX-HEX 888 | -10/Exiles | Met EX-DEC 936 | -10/Exiles | Learned location of Zion (-7) 998 | -10/Exiles | Discovered new exit (range 10) 1175 | -10/Exiles | Met EX-BIN 1209 | -10/Exiles | Aligned with FarCom system 1211 | -10/Exiles | Given EX-Vault access code 1449 | -10/Exiles | Opened EX-Vault 1464 | -10/Exiles | Found Latent Energy Streamer 1504 | -10/Exiles | Warned to stay clear of 0b10 Research branches 1633 | -10/Exiles | Discovered new exit (range 14) 1880 | -10/Exiles | Left Exiles lab with Latent Energy Streamer 1880 | -10/Exiles | Entered Mines 2032 | -9/Mines | Discovered new exit (range 9) 2160 | -9/Mines | Learned Materials terminal intel 2437 | -9/Mines | Learned Materials emergency access door positions 2507 | -9/Mines | Discovered new exit (range 6) 2620 | -9/Mines | Learned location of Storage (-8) 2766 | -9/Mines | Received a Rocket Launcher from a helpful Derelict 2972 | -9/Mines | Entered Materials 2972 | -8/Materials | Accompanied by 2 allies 2972 | -8/Materials | Evolved 4 slots: Power x1, Propulsion x1, Utility x2 2974 | -8/Materials | Loaded intel: 12 terminal locations 2977 | -8/Materials | Led the pair of lost Derelicts to an unsafe place 3170 | -8/Materials | Discovered new exit (range 6) 3275 | -8/Materials | Build established: Scavenger-Skirmisher 3495 | -8/Materials | Discovered new exit (range 3) 3643 | -8/Materials | Entered Factory 3643 | -7/Factory | Evolved 2 slots: Utility x1, Weapon x1 4163 | -7/Factory | Destroyed 7 combat bots 4632 | -7/Factory | Repaired Terrain Scanner 4655 | -7/Factory | Repaired Adv. Assault Cannon 5018 | -7/Factory | System corruption reached 10% 5072 | -7/Factory | Build established: Skirmisher 5450 | -7/Factory | Repaired Med. Treads 5642 | -7/Factory | Discovered new exit (range 13) 5848 | -7/Factory | Entered another Factory area 5848 | -6/Factory | Evolved 2 slots: Utility x2 6238 | -6/Factory | Repaired Med. Treads 6300 | -6/Factory | Repaired Broken Med. Treads 6750 | -6/Factory | Discovered new exit (range 18) 7631 | -6/Factory | Found Powered Armor 7905 | -6/Factory | Repaired Med. Treads 8071 | -6/Factory | Repaired Broken Adv. Treads 8257 | -6/Factory | Entered Extension 8393 | -6/Extension | Spotted B-75 Beast 8822 | -6/Extension | Rescued a captive Derelict 8955 | -6/Extension | Rescued A7 8988 | -6/Extension | Rescued a captive Derelict 9114 | -6/Extension | Spotted B-75 Beast 9118 | -6/Extension | Discovered new exit (range 18) 9131 | -6/Extension | Allies destroyed B-75 Beast 9151 | -6/Extension | Destroyed B-75 Beast 9312 | -6/Extension | Rescued a captive Derelict 9313 | -6/Extension | Rescued a captive Derelict 9344 | -6/Extension | Rescued a captive Derelict 9444 | -6/Extension | Rescued a captive Derelict 9445 | -6/Extension | Rescued a captive Derelict 9690 | -6/Extension | Build established: Commander-Skirmisher 9754 | -6/Extension | Discovered new exit (range 20) 9777 | -6/Extension | Discovered new exit (range 10) 9833 | -6/Extension | Entered Cetus 9833 | -6/Cetus | Accompanied by 13 allies (A7) 9838 | -6/Cetus | Acquired a Cetus Manufacturing Module code from A7 9844 | -6/Cetus | Spotted Cetus Guard 9847 | -6/Cetus | Allies destroyed Cetus Guard 9849 | -6/Cetus | Spotted Cetus Guard 9849 | -6/Cetus | Spotted Cetus Guard 9849 | -6/Cetus | Allies destroyed Cetus Guard 9856 | -6/Cetus | Allies destroyed Cetus Guard 9918 | -6/Cetus | Discovered new exit (range 22) 10109 | -6/Cetus | Escorted A7 to Cetus Mainframe 10191 | -6/Cetus | Discovered new exit (range 21) 10231 | -6/Cetus | Spotted Cetus Guard 10231 | -6/Cetus | Spotted Cetus Guard 10231 | -6/Cetus | Spotted Cetus Guard 10231 | -6/Cetus | Spotted Cetus Guard 10239 | -6/Cetus | Discovered new exit (range 21) 10245 | -6/Cetus | Destroyed Cetus Guard 10245 | -6/Cetus | Allies destroyed Cetus Guard 10248 | -6/Cetus | Allies destroyed Cetus Guard 10249 | -6/Cetus | Allies destroyed Cetus Guard 10270 | -6/Cetus | Met Revision 17 10357 | -6/Cetus | Entered Factory 10357 | -5/Factory | Accompanied by 10 allies (A7) 10357 | -5/Factory | Evolved 2 slots: Propulsion x1, Utility x1 10357 | -5/Factory | Discovered new exit (range 21) 10362 | -5/Factory | Received a hacking code to weaken MAIN.C 10434 | -5/Factory | Repaired Broken Med. Treads 10479 | -5/Factory | Repaired Med. Treads? 10666 | -5/Factory | Discovered new exit (range 10) 10668 | -5/Factory | Discovered new exit (range 16) 10964 | -5/Factory | Found Unknown Device 10999 | -5/Factory | Identified Launcher Loader 11093 | -5/Factory | Repaired Med. Treads? 11123 | -5/Factory | Garrison activated, responded to threat 11163 | -5/Factory | Repaired Adv. Terrain Scanner 11212 | -5/Factory | Repaired Adv. Assault Cannon 11331 | -5/Factory | Spotted B-75 Beast 11350 | -5/Factory | Destroyed B-75 Beast 11517 | -5/Factory | Lost 3 allies 11870 | -5/Factory | P-70 Sage assimilated allied 38-BA2(h) 11995 | -5/Factory | Identified exit to Upper Caves 12050 | -5/Factory | Entered Upper Caves 12108 | -5/Upper Caves | Build established: Hacker-Skirmisher 12251 | -5/Upper Caves | Entered a destroyed Warlord outpost 12289 | -5/Upper Caves | Learned Factory emergency access door positions 12441 | -5/Upper Caves | Discovered new exit (range 19) 12459 | -5/Upper Caves | Attracted the attention of an 0b10 checkpoint 12529 | -5/Upper Caves | Entered another Upper Caves area 12661 | -5/Upper Caves | Discovered new exit (range 9) 12914 | -5/Upper Caves | Learned Factory emergency access door positions 13187 | -5/Upper Caves | Entered Factory 13187 | -4/Factory | Evolved 2 slots: Power x1, Utility x1 13192 | -4/Factory | Discovered new exit (range 16) 13259 | -4/Factory | Found Unknown Device 13302 | -4/Factory | Identified Quantum Capacitor 13512 | -4/Factory | Spotted B-86 Titan 13661 | -4/Factory | Repaired Med. Treads 13706 | -4/Factory | Repaired Med. Treads? 14696 | -4/Factory | Build established: Skirmisher 14822 | -4/Factory | Garrison activated, responded to threat 14847 | -4/Factory | Core integrity fell below 50% 14852 | -4/Factory | Core integrity fell below 20% 14859 | -4/Factory | Destroyed by H-77 Assassin with High-powered Shotgun Last Messages --------------- 14848_ Penetrated by Slug. 14849_ U-05 Engineer builds a Wall. 14849_ K-01 Serf collects debris. 14849_ R-10 Processor collects Med. Matter Pod. 14850_ U-05 Engineer builds a Door. 14851_ Dropped Hcp. Storage Unit. 14851_ R-10 Processor collects Hyb. Fission Core. 14851_ Penetrated by Slug. 14851_ R-10 Processor collects Adv. Targeting Computer. 14851_ K-01 Serf collects debris. 14852_ Slammed into K-01 Serf. 14852_ K-01 Serf distress signal alerts nearby ally. 14852_ K-01 Serf collects debris. 14854_ R-10 Processor collects Component Analysis Suite. 14854_ Slug penetrates Wall. 14855_ P-70 Sage resets X-77 Beamer, system corruption cleaned. 14856_ Slug penetrates Door. 14859_ Penetrated by Slug. 14859_ Slug penetrates A-15 Conveyor. [Achievement: 10k Club] Map ----- +----------------------------------------------------+ | ? ? ? ?# ##### """ """ ##?##### ?????? | | ###+##### ? ##### """ """ ####?#?###+####???? | | ??? ? ##### "" "" ######### ? ????? | | ? ? ?#### "" "" ######### ? ??? | | ??? ? ? ?#### #########? ????? | | ?????" " ###?# #???###?# ?????? | | ????"?" ?"" ##### ####?##?# ?????? | | ?? ?""" """ ?###?# #######?##????????? | | ????? ###########+######################?? | | ?? ???"?""" ?? | | ??? ??? """ k ? | | ????""" """ ? | | ????? ? | | ????? ? | | ?????#####+############ ##################?##? | | ?????#? ? ? ########k # ##??? | | ???????""""""? ######## # ##### | | ???????"?"Y?"" ??#?####u + ##### | | ???????? ? ? ###?##?# # ##### | | ??????? ???""" ######## # ##??# | | ???????? """"" ######## # ###?# | | ??????????"""" ####?### # ####? | | ????????? #?#?#### # ##?#? | | ????????###############p # ####? | | ?????????#?##?#####?### ###################### | | ??????????#?#?#?####### A@ ###################### | | ??????????########?#### # ######### | | ?????????#########?#### # ######### | | ????????######?###?#?## # ########? | | ??????????#########??## # """" """" ######### | | ?????????########?##### # """" """" ######### | | ??????????#######?##### # """" """" ####### | | ???????##?#?##?######## k h ; """" """" ####### | | ?????????#??########### # """" """" ####### " | | ????????#?###?#?####### # p"" " """" ####### " | | ????????#???##?############h# ####### " | | ???????????#######?######## # ####### | | ????????##?######?###?#####u# ####### | | ????????##?#??#?###?####### #####x############## | | ????????##??#####?###?##### Y Yx%!# ! ##" | | ??????????#?###???####### " Y !%! !/ % ## | | ?????????#?#???##???####### !%% #%% ! %+% | | ???????????? ? ? ### !!%*##! % ## | | ???????? ???? ?? ? " + ############# | | ?????????+ +? ? """ ######+####+############# | | ?????????????? """ ## # ####### | | ???????????#??? ? ?## """ ?# """""" + | | ?????????#????? ? ? ## """ # """""" ## | | ???????????#????? ? ? ##! """ # """""" ## | | ???????????? ?? ? ## # """""" ## | +----------------------------------------------------+ Best States ------------- Heat Dissipation 62 Energy Generation 47 Energy Capacity 1700 Matter Stores 300 Matter Capacity 300 Sight Range 22 Terrain Scan Range 20 Terrain Scan Density 210 Additional Mass Support 6 Armor Coverage 400 Resistance: KI 50 Resistance: TH 20 Resistance: EX 20 Resistance: EM 20 Resistance: I 20 Resistance: S 20 Resistance: P 20 Weapon Cycling 30 Evasion (%) 50 Targeting Accuracy 8 Recoil Reduction 4 Offensive Hacking 24 Item Schematics ----------------- None Robot Schematics ------------------ None Fabricated ------------ Nothing Repaired ---------- Terrain Scanner | 60% | -7/Factory Adv. Assault Cannon | 43% | -7/Factory Med. Treads | 68% | -7/Factory Med. Treads | 51% | -6/Factory Med. Treads | 68% | -6/Factory | Broken Med. Treads | 62% | -6/Factory Adv. Treads | 66% | -6/Factory | Broken Med. Treads | 38% | -5/Factory | Broken Med. Treads | 49% | -5/Factory Med. Treads | 72% | -5/Factory Adv. Terrain Scanner | 54% | -5/Factory Adv. Assault Cannon | 20% | -5/Factory Med. Treads | 21% | -4/Factory Med. Treads | 40% | -4/Factory Alien Tech Used ----------------- None Achievements -------------- 10k Club A New Friend Armchair Analyst Everything Is Under Control GoHome() Leap Before You Look Loot Pinata Main Advantage Maybe Next Time I'll Detach My Launcher Omniscient Cartographer Please Form A Line Prison Break Prolific Hacker Remodeling Revising The Future Shopping List The More The Merrier Tourist Troublemaker Challenges ------------ None Game ------ Seed WaveDrainedFrame Manual? 0 Play Time 05:02:59 Cumulative 11.7 hours Start 2025.07.12 @ 17:08:36 End 2025.07.21 @ 22:22:40 Sessions 15 Manual Loads 0 Difficulty Adventurer Special Mode None Game No. 3 Rogue 0 Adventurer 3 Explorer 0 Win Type - Total 0 Types 0/0/0/0/0/0/0/0/0/0 Lore% 7 Gallery% 10 Achievement% 15 Wizard Run 0 Options --------- Layout 0 ASCII 0 Keyboard 0 Movement Numpad Keybinds 0 Fullscreen 1 Font 18/SmallcapsGlow Map View 76x50 Zoom Use 0% Tactical HUD 1 Map Filters NONE Filters NONE Steam 1 RUN: 5046707d-459c-4506-b608-726d63f1dd36